[Event "*** SCC Grand Prix: Titled Tuesday Blitz"]
[Site "Chess.com"]
[Date "2020.08.11"]
[Round "5"]
[White "Skatchkov_V"]
[Black "rasmussvane"]
[Result "0-1"]
[WhiteElo "2634"]
[BlackElo "2878"]
[TimeControl "180+1"]
[EndTime "10:57:01 PDT"]
[Termination "rasmussvane won on time"]

1. d4 {[%clk 0:03:00.6]} 1... d5 {[%clk 0:03:00]} 2. c4 {[%clk 0:03:01]} 2... e6
{[%clk 0:03:00.4]} 3. Nf3 {[%clk 0:03:01.6]} 3... a6 {[%clk 0:03:00.8]} 4. cxd5
{[%clk 0:03:00.7]} 4... exd5 {[%clk 0:03:01.7]} 5. Nc3 {[%clk 0:03:01.6]} 5...
Nf6 {[%clk 0:03:02.2]} 6. Bg5 {[%clk 0:03:01.7]} 6... Be6 {[%clk 0:03:02.6]} 7.
e3 {[%clk 0:03:00.2]} 7... Nbd7 {[%clk 0:03:03]} 8. Bd3 {[%clk 0:02:59.8]} 8...
Bd6 {[%clk 0:03:03.5]} 9. O-O {[%clk 0:02:54.6]} 9... c6 {[%clk 0:03:04]} 10.
Bf4 {[%clk 0:02:53.8]} 10... Qc7 {[%clk 0:03:02]} 11. Bg3 {[%clk 0:02:43.8]}
11... O-O {[%clk 0:03:00.5]} 12. Qc2 {[%clk 0:02:44.1]} 12... Bxg3 {[%clk
0:02:55.3]} 13. hxg3 {[%clk 0:02:44.3]} 13... Bg4 {[%clk 0:02:55.9]} 14. Nh2
{[%clk 0:02:39.8]} 14... Bh5 {[%clk 0:02:55.7]} 15. Nf3 {[%clk 0:02:36.2]} 15...
Bg6 {[%clk 0:02:52.4]} 16. a3 {[%clk 0:02:33]} 16... Rfe8 {[%clk 0:02:52.2]} 17.
Nd2 {[%clk 0:02:31.8]} 17... Bxd3 {[%clk 0:02:46.6]} 18. Qxd3 {[%clk 0:02:32.7]}
18... g6 {[%clk 0:02:45.4]} 19. Rac1 {[%clk 0:02:32.3]} 19... Kg7 {[%clk
0:02:43.8]} 20. b4 {[%clk 0:02:16.2]} 20... Qd6 {[%clk 0:02:39.5]} 21. Na4
{[%clk 0:02:13.2]} 21... Re7 {[%clk 0:02:37.7]} 22. Nc5 {[%clk 0:02:08.1]} 22...
Nb6 {[%clk 0:02:37.8]} 23. a4 {[%clk 0:02:03.3]} 23... h5 {[%clk 0:02:36]} 24.
b5 {[%clk 0:01:46.9]} 24... cxb5 {[%clk 0:02:36.9]} 25. axb5 {[%clk 0:01:47.8]}
25... a5 {[%clk 0:02:37.2]} 26. Ra1 {[%clk 0:01:33.1]} 26... Ng4 {[%clk
0:02:02.3]} 27. Nf3 {[%clk 0:01:33.1]} 27... Nc4 {[%clk 0:02:01.6]} 28. e4
{[%clk 0:00:47]} 28... b6 {[%clk 0:01:24.4]} 29. e5 {[%clk 0:00:32.9]} 29...
Ngxe5 {[%clk 0:00:17.1]} 30. Nxe5 {[%clk 0:00:33.1]} 30... Nxe5 {[%clk
0:00:17.2]} 31. dxe5 {[%clk 0:00:34]} 31... Qxc5 {[%clk 0:00:17.6]} 32. Rfc1
{[%clk 0:00:31.3]} 32... Qb4 {[%clk 0:00:17.8]} 33. Qxd5 {[%clk 0:00:30.8]}
33... Rae8 {[%clk 0:00:18]} 34. f4 {[%clk 0:00:11]} 34... h4 {[%clk 0:00:17.7]}
35. Rc4 {[%clk 0:00:07]} 35... Qb2 {[%clk 0:00:16.2]} 36. Rf1 {[%clk 0:00:03.9]}
36... hxg3 {[%clk 0:00:16.1]} 37. Qd3 {[%clk 0:00:03.9]} 37... Qxb5 {[%clk
0:00:14.5]} 38. Qc3 {[%clk 0:00:03.5]} 38... Kg8 {[%clk 0:00:12.8]} 39. Rc6
{[%clk 0:00:03.5]} 39... Rd7 {[%clk 0:00:10]} 40. Rf6 {[%clk 0:00:02.2]} 40...
Qc5+ {[%clk 0:00:07.7]} 41. Qxc5 {[%clk 0:00:02.1]} 41... bxc5 {[%clk
0:00:08.6]} 42. Rc6 {[%clk 0:00:02.6]} 42... Rb8 {[%clk 0:00:08.2]} 43. Rxc5
{[%clk 0:00:02.9]} 43... Rd3 {[%clk 0:00:05.3]} 44. f5 {[%clk 0:00:02]} 44...
Rb2 {[%clk 0:00:04.2]} 45. fxg6 {[%clk 0:00:00.9]} 45... fxg6 {[%clk 0:00:04.3]}
46. Rc8+ {[%clk 0:00:01.2]} 46... Kg7 {[%clk 0:00:04.3]} 47. e6 {[%clk
0:00:01.7]} 47... Rdd2 {[%clk 0:00:04.7]} 48. Rf7+ {[%clk 0:00:01.4]} 48... Kh6
{[%clk 0:00:05.2]} 49. Rh8+ {[%clk 0:00:01.9]} 49... Kg5 {[%clk 0:00:05.8]} 50.
e7 {[%clk 0:00:02.6]} 50... Rxg2+ {[%clk 0:00:05.5]} 51. Kh1 {[%clk 0:00:03.2]}
51... Rgc2 {[%clk 0:00:01.4]} 52. Rf5+ {[%clk 0:00:01.1]} 52... gxf5 {[%clk
0:00:01.1]} 53. Rf8 {[%clk 0:00:02]} 53... Kg4 {[%clk 0:00:01.5]} 54. Rg8+
{[%clk 0:00:02.9]} 54... Kf3 {[%clk 0:00:01.8]} 55. e8=Q {[%clk 0:00:03.8]}
55... Rc1+ {[%clk 0:00:02.3]} 0-1

[Event "*** SCC Grand Prix: Titled Tuesday Blitz"]
[Site "Chess.com"]
[Date "2020.08.11"]
[Round "5"]
[White "DACF2905"]
[Black "Unknown_IM"]
[Result "1/2-1/2"]
[WhiteElo "2227"]
[BlackElo "2386"]
[TimeControl "180+1"]
[EndTime "10:57:03 PDT"]
[Termination "Game drawn by repetition"]

1. c4 {[%clk 0:02:59.5]} 1... c5 {[%clk 0:02:59.7]} 2. Nc3 {[%clk 0:02:58.4]}
2... Nc6 {[%clk 0:02:58.5]} 3. g3 {[%clk 0:02:57.8]} 3... g6 {[%clk 0:02:58.6]}
4. Bg2 {[%clk 0:02:58]} 4... Bg7 {[%clk 0:02:59.2]} 5. e3 {[%clk 0:02:58.6]}
5... d6 {[%clk 0:02:56.2]} 6. Nge2 {[%clk 0:02:59.1]} 6... Nf6 {[%clk
0:02:49.6]} 7. O-O {[%clk 0:02:57.7]} 7... O-O {[%clk 0:02:50.1]} 8. d4 {[%clk
0:02:57.3]} 8... Bd7 {[%clk 0:02:48.4]} 9. d5 {[%clk 0:02:55.8]} 9... Na5 {[%clk
0:02:48.2]} 10. b3 {[%clk 0:02:54.5]} 10... a6 {[%clk 0:02:46.3]} 11. a4 {[%clk
0:02:46.4]} 11... Rb8 {[%clk 0:02:33.7]} 12. Qc2 {[%clk 0:02:26.3]} 12... b5
{[%clk 0:02:26.4]} 13. axb5 {[%clk 0:02:26]} 13... axb5 {[%clk 0:02:27.3]} 14.
Qa2 {[%clk 0:02:02.1]} 14... Ra8 {[%clk 0:02:15.9]} 15. cxb5 {[%clk 0:01:59.8]}
15... Nxb3 {[%clk 0:02:10.9]} 16. Qxa8 {[%clk 0:01:58.5]} 16... Qxa8 {[%clk
0:02:11.8]} 17. Rxa8 {[%clk 0:01:57.7]} 17... Rxa8 {[%clk 0:02:12.7]} 18. Bb2
{[%clk 0:01:40.6]} 18... Rb8 {[%clk 0:01:50.8]} 19. Rb1 {[%clk 0:01:38.7]} 19...
Bxb5 {[%clk 0:01:45.8]} 20. Nxb5 {[%clk 0:01:00]} 20... Rxb5 {[%clk 0:01:45]}
21. Nc3 {[%clk 0:00:52.1]} 21... Rb8 {[%clk 0:01:28.8]} 22. Ba3 {[%clk
0:00:45.9]} 22... Nd7 {[%clk 0:01:21.8]} 23. Ne4 {[%clk 0:00:33.4]} 23... Na5
{[%clk 0:01:14.6]} 24. Rxb8+ {[%clk 0:00:23.7]} 24... Nxb8 {[%clk 0:01:15.5]}
25. Bf1 {[%clk 0:00:21.3]} 25... Nd7 {[%clk 0:01:05.9]} 26. Bb5 {[%clk
0:00:19.3]} 26... Nb6 {[%clk 0:00:53.2]} 27. Bc6 {[%clk 0:00:19.6]} 27... Nbc4
{[%clk 0:00:35.3]} 28. Bc1 {[%clk 0:00:18.6]} 28... Nb3 {[%clk 0:00:35.4]} 29.
Bb5 {[%clk 0:00:15.4]} 29... Nb6 {[%clk 0:00:22.8]} 30. Bd2 {[%clk 0:00:13.4]}
30... Nxd2 {[%clk 0:00:21.2]} 31. Nxd2 {[%clk 0:00:13.6]} 31... Nxd5 {[%clk
0:00:21.8]} 32. e4 {[%clk 0:00:13.8]} 32... Nc3 {[%clk 0:00:21.5]} 33. Bc4
{[%clk 0:00:13.3]} 33... Kf8 {[%clk 0:00:21.2]} 34. Kf1 {[%clk 0:00:13.2]} 34...
Na4 {[%clk 0:00:19.2]} 35. Ke2 {[%clk 0:00:12.8]} 35... Nb6 {[%clk 0:00:19.6]}
36. Bb5 {[%clk 0:00:12.3]} 36... e6 {[%clk 0:00:19.8]} 37. f3 {[%clk 0:00:12.1]}
37... Ke7 {[%clk 0:00:20.3]} 38. Nc4 {[%clk 0:00:12.4]} 38... Nxc4 {[%clk
0:00:19.5]} 39. Bxc4 {[%clk 0:00:13.3]} 39... Kd7 {[%clk 0:00:20]} 40. Kd3
{[%clk 0:00:13.8]} 40... Kc6 {[%clk 0:00:20.5]} 41. Kc2 {[%clk 0:00:13.2]} 41...
d5 {[%clk 0:00:20.9]} 42. Bb3 {[%clk 0:00:12.9]} 42... c4 {[%clk 0:00:21.2]} 43.
Ba4+ {[%clk 0:00:13.3]} 43... Kc5 {[%clk 0:00:20.9]} 44. Be8 {[%clk 0:00:14.2]}
44... f5 {[%clk 0:00:20.6]} 45. Bf7 {[%clk 0:00:13]} 45... fxe4 {[%clk 0:00:14]}
46. fxe4 {[%clk 0:00:12.1]} 46... dxe4 {[%clk 0:00:13.5]} 47. Bxe6 {[%clk
0:00:12.3]} 47... Kd4 {[%clk 0:00:13.8]} 48. Bg8 {[%clk 0:00:11]} 48... h5
{[%clk 0:00:12.5]} 49. Bf7 {[%clk 0:00:10.6]} 49... e3 {[%clk 0:00:09.2]} 50.
Kd1 {[%clk 0:00:10.6]} 50... h4 {[%clk 0:00:08]} 51. Bxg6 {[%clk 0:00:10.4]}
51... hxg3 {[%clk 0:00:06.2]} 52. hxg3 {[%clk 0:00:11.3]} 52... Be5 {[%clk
0:00:05.9]} 53. g4 {[%clk 0:00:11.4]} 53... Bf4 {[%clk 0:00:06.5]} 54. Ke2
{[%clk 0:00:11.7]} 54... Kc3 {[%clk 0:00:06.2]} 55. Be4 {[%clk 0:00:11.1]} 55...
Bg5 {[%clk 0:00:06.5]} 56. Bd5 {[%clk 0:00:09.7]} 56... Kd4 {[%clk 0:00:06.2]}
57. Bf7 {[%clk 0:00:09.2]} 57... Kc3 {[%clk 0:00:06.3]} 58. Bd5 {[%clk 0:00:09]}
58... Kb4 {[%clk 0:00:06.6]} 59. Kd1 {[%clk 0:00:08.4]} 59... c3 {[%clk
0:00:04.5]} 60. Bf3 {[%clk 0:00:07.1]} 60... Kb3 {[%clk 0:00:04.4]} 61. Bd5+
{[%clk 0:00:06.8]} 61... Kb2 {[%clk 0:00:04.8]} 62. Be4 {[%clk 0:00:07.2]} 62...
Bf4 {[%clk 0:00:03.7]} 63. Bf5 {[%clk 0:00:07]} 63... Bg5 {[%clk 0:00:04]} 64.
Be4 {[%clk 0:00:07.2]} 64... Kb3 {[%clk 0:00:04.5]} 65. Bf5 {[%clk 0:00:07.1]}
65... Kc4 {[%clk 0:00:04.8]} 66. Ke2 {[%clk 0:00:07.2]} 66... Kd4 {[%clk
0:00:04.5]} 67. Bc2 {[%clk 0:00:06.8]} 67... Kc4 {[%clk 0:00:04.9]} 68. Bf5
{[%clk 0:00:06.7]} 68... Kb3 {[%clk 0:00:05.3]} 69. Kd1 {[%clk 0:00:06.1]} 69...
Kb2 {[%clk 0:00:05.4]} 70. Ke2 {[%clk 0:00:05.9]} 70... Kb3 {[%clk 0:00:05.9]}
71. Kd1 {[%clk 0:00:05.9]} 1/2-1/2

[Event "*** SCC Grand Prix: Titled Tuesday Blitz"]
[Site "Chess.com"]
[Date "2020.08.11"]
[Round "5"]
[White "Gusarov91"]
[Black "SRDR8290"]
[Result "1-0"]
[WhiteElo "2649"]
[BlackElo "2394"]
[TimeControl "180+1"]
[EndTime "10:57:12 PDT"]
[Termination "Gusarov91 won by resignation"]

1. d4 {[%clk 0:02:51.1]} 1... e6 {[%clk 0:03:00.7]} 2. Nf3 {[%clk 0:02:51]} 2...
Nf6 {[%clk 0:03:00.7]} 3. c4 {[%clk 0:02:51.4]} 3... d5 {[%clk 0:02:59.4]} 4. g3
{[%clk 0:02:51.4]} 4... c5 {[%clk 0:02:58.1]} 5. cxd5 {[%clk 0:02:51.3]} 5...
Nxd5 {[%clk 0:02:57.3]} 6. Bg2 {[%clk 0:02:49.9]} 6... Be7 {[%clk 0:02:57.1]} 7.
O-O {[%clk 0:02:47.8]} 7... O-O {[%clk 0:02:57]} 8. Nc3 {[%clk 0:02:48.4]} 8...
Nxc3 {[%clk 0:02:56.9]} 9. bxc3 {[%clk 0:02:48.3]} 9... Nd7 {[%clk 0:02:57.2]}
10. Rb1 {[%clk 0:02:47.5]} 10... Qc7 {[%clk 0:02:45.1]} 11. Bf4 {[%clk
0:02:46.7]} 11... Bd6 {[%clk 0:02:43]} 12. Bxd6 {[%clk 0:02:41.1]} 12... Qxd6
{[%clk 0:02:43.9]} 13. e4 {[%clk 0:02:38.6]} 13... Rb8 {[%clk 0:02:42]} 14. e5
{[%clk 0:02:38.7]} 14... Qc7 {[%clk 0:02:38.1]} 15. Qd3 {[%clk 0:02:26.5]} 15...
Rd8 {[%clk 0:02:27.5]} 16. Ng5 {[%clk 0:02:22.1]} 16... Nf8 {[%clk 0:02:27.8]}
17. Qc4 {[%clk 0:02:06.4]} 17... b6 {[%clk 0:02:21.1]} 18. dxc5 {[%clk
0:01:57.6]} 18... Qxe5 {[%clk 0:02:20.5]} 19. c6 {[%clk 0:01:46.5]} 19... Qc7
{[%clk 0:01:51.7]} 20. h4 {[%clk 0:01:36.9]} 20... h6 {[%clk 0:01:50.5]} 21. Nf3
{[%clk 0:01:34.6]} 21... Ng6 {[%clk 0:01:46.4]} 22. Nd4 {[%clk 0:01:33.7]} 22...
a6 {[%clk 0:01:41.5]} 23. Rfe1 {[%clk 0:01:25.6]} 23... e5 {[%clk 0:01:40]} 24.
h5 {[%clk 0:01:17.8]} 24... Nf8 {[%clk 0:01:26]} 25. Nf3 {[%clk 0:01:06.2]}
25... b5 {[%clk 0:01:20.8]} 26. Qc5 {[%clk 0:01:01.7]} 26... f6 {[%clk
0:01:14.4]} 27. c4 {[%clk 0:00:46.1]} 27... Bf5 {[%clk 0:01:02.5]} 28. Rbd1
{[%clk 0:00:29.4]} 28... Ne6 {[%clk 0:00:59.4]} 29. Qa3 {[%clk 0:00:29.6]} 29...
bxc4 {[%clk 0:00:39]} 30. Rxd8+ {[%clk 0:00:29.7]} 30... Nxd8 {[%clk 0:00:37.5]}
31. Qxa6 {[%clk 0:00:29.5]} 31... Qxc6 {[%clk 0:00:35.9]} 32. Qxc6 {[%clk
0:00:25.1]} 32... Nxc6 {[%clk 0:00:36.8]} 33. Nh4 {[%clk 0:00:25.5]} 33... Bd7
{[%clk 0:00:33.3]} 34. Bd5+ {[%clk 0:00:25.2]} 34... Kf8 {[%clk 0:00:30.3]} 35.
Ng6+ {[%clk 0:00:25.7]} 35... Ke8 {[%clk 0:00:31]} 36. Bxc4 {[%clk 0:00:26.2]}
36... Nd4 {[%clk 0:00:30.8]} 37. Bd5 {[%clk 0:00:24]} 37... Be6 {[%clk
0:00:27.9]} 38. Bxe6 {[%clk 0:00:19]} 38... Nf3+ {[%clk 0:00:27.1]} 39. Kf1
{[%clk 0:00:19.3]} 39... Nxe1 {[%clk 0:00:26.7]} 40. Kxe1 {[%clk 0:00:19.8]}
40... Rb1+ {[%clk 0:00:27.1]} 41. Ke2 {[%clk 0:00:19.6]} 41... Rb2+ {[%clk
0:00:28]} 42. Kf3 {[%clk 0:00:20.1]} 42... Rb6 {[%clk 0:00:28.2]} 43. Bb3 {[%clk
0:00:19.8]} 43... Rb4 {[%clk 0:00:28]} 44. g4 {[%clk 0:00:19.7]} 44... Rd4
{[%clk 0:00:27.2]} 45. Kg3 {[%clk 0:00:20]} 45... Rd3+ {[%clk 0:00:26.9]} 46.
Kg2 {[%clk 0:00:19.9]} 46... Rd4 {[%clk 0:00:26.9]} 47. Kf3 {[%clk 0:00:19.3]}
47... Rd3+ {[%clk 0:00:27.3]} 48. Ke2 {[%clk 0:00:19.8]} 48... Rd4 {[%clk
0:00:27.4]} 49. f3 {[%clk 0:00:20.4]} 49... Rb4 {[%clk 0:00:26.1]} 50. Ke3
{[%clk 0:00:20.7]} 50... Rb6 {[%clk 0:00:25.2]} 51. Nh4 {[%clk 0:00:20.9]} 51...
Rb4 {[%clk 0:00:25.1]} 52. Nf5 {[%clk 0:00:21.4]} 52... Kf8 {[%clk 0:00:25.6]}
53. Nd6 {[%clk 0:00:21.6]} 53... Rb6 {[%clk 0:00:25.5]} 54. Nc4 {[%clk
0:00:21.7]} 54... Rb7 {[%clk 0:00:24.6]} 55. Ke4 {[%clk 0:00:21.5]} 55... Rb5
{[%clk 0:00:24.1]} 56. Nd6 {[%clk 0:00:21.2]} 56... Rb4+ {[%clk 0:00:23.2]} 57.
Bc4 {[%clk 0:00:21.7]} 57... Rb2 {[%clk 0:00:21.3]} 58. Nf5 {[%clk 0:00:20.7]}
58... Rc2 {[%clk 0:00:20.3]} 59. Bb3 {[%clk 0:00:20.5]} 59... Rc3 {[%clk
0:00:19.6]} 60. f4 {[%clk 0:00:20]} 60... exf4 {[%clk 0:00:19.2]} 61. Kxf4
{[%clk 0:00:20.5]} 61... Rc1 {[%clk 0:00:19.2]} 62. Nh4 {[%clk 0:00:20.3]} 62...
Rf1+ {[%clk 0:00:19.4]} 63. Kg3 {[%clk 0:00:20.6]} 63... Ke7 {[%clk 0:00:19.1]}
64. Nf5+ {[%clk 0:00:20.5]} 64... Kf8 {[%clk 0:00:19.7]} 65. Nd4 {[%clk
0:00:20.5]} 65... Rg1+ {[%clk 0:00:19.8]} 66. Kf3 {[%clk 0:00:20.4]} 66... Rf1+
{[%clk 0:00:20]} 67. Kg2 {[%clk 0:00:20.7]} 67... Re1 {[%clk 0:00:19.3]} 68. Kf2
{[%clk 0:00:20.7]} 68... Rc1 {[%clk 0:00:18.2]} 69. Ne6+ {[%clk 0:00:20.8]}
69... Kg8 {[%clk 0:00:16.8]} 70. Kf3 {[%clk 0:00:19.9]} 70... Kh8 {[%clk
0:00:17.3]} 71. Nf4 {[%clk 0:00:19.8]} 71... Rc3+ {[%clk 0:00:17.6]} 72. Ke4
{[%clk 0:00:19.9]} 72... Rg3 {[%clk 0:00:18.1]} 73. Ng6+ {[%clk 0:00:20.4]}
73... Kh7 {[%clk 0:00:17.5]} 74. Kf4 {[%clk 0:00:21.3]} 74... Rg1 {[%clk
0:00:13]} 75. Bf7 {[%clk 0:00:21.3]} 75... f5 {[%clk 0:00:13.1]} 76. Kxf5 {[%clk
0:00:21.4]} 76... Rf1+ {[%clk 0:00:12.8]} 77. Ke6 {[%clk 0:00:21.5]} 77... Re1+
{[%clk 0:00:13]} 78. Kd7 {[%clk 0:00:21.8]} 78... Re7+ {[%clk 0:00:12.6]} 79.
Nxe7 {[%clk 0:00:21.2]} 1-0

[Event "*** SCC Grand Prix: Titled Tuesday Blitz"]
[Site "Chess.com"]
[Date "2020.08.11"]
[Round "5"]
[White "Brave_spirit12"]
[Black "UmbertoConcelli"]
[Result "1-0"]
[WhiteElo "2532"]
[BlackElo "2699"]
[TimeControl "180+1"]
[EndTime "10:57:18 PDT"]
[Termination "Brave_spirit12 won by checkmate"]

1. e4 {[%clk 0:02:59.6]} 1... c5 {[%clk 0:02:55.6]} 2. c3 {[%clk 0:02:58.8]}
2... Nf6 {[%clk 0:02:53.4]} 3. e5 {[%clk 0:02:58.7]} 3... Nd5 {[%clk 0:02:53.8]}
4. Nf3 {[%clk 0:02:58.7]} 4... e6 {[%clk 0:02:52.5]} 5. d4 {[%clk 0:02:58.8]}
5... cxd4 {[%clk 0:02:50.8]} 6. cxd4 {[%clk 0:02:59.7]} 6... d6 {[%clk
0:02:50.9]} 7. Nc3 {[%clk 0:02:59.3]} 7... Nxc3 {[%clk 0:02:44.9]} 8. bxc3
{[%clk 0:03:00.2]} 8... Nc6 {[%clk 0:02:45.6]} 9. Bb5 {[%clk 0:02:56]} 9... Be7
{[%clk 0:02:43.5]} 10. O-O {[%clk 0:02:53.1]} 10... O-O {[%clk 0:02:43]} 11.
exd6 {[%clk 0:02:49.7]} 11... Qxd6 {[%clk 0:02:41.1]} 12. Be3 {[%clk 0:02:40.1]}
12... b6 {[%clk 0:02:39.3]} 13. Re1 {[%clk 0:02:27.8]} 13... Bb7 {[%clk
0:02:38.6]} 14. Qd2 {[%clk 0:02:26.7]} 14... Rac8 {[%clk 0:02:33.9]} 15. Bf4
{[%clk 0:02:22.9]} 15... Qd5 {[%clk 0:02:33.4]} 16. Bd3 {[%clk 0:02:21.7]} 16...
Na5 {[%clk 0:02:28.7]} 17. Be4 {[%clk 0:02:17.9]} 17... Qd8 {[%clk 0:02:12]} 18.
Bxb7 {[%clk 0:02:16.3]} 18... Nxb7 {[%clk 0:02:12.9]} 19. Ne5 {[%clk 0:02:14.1]}
19... Bf6 {[%clk 0:02:06.3]} 20. Rad1 {[%clk 0:02:12.3]} 20... Na5 {[%clk
0:02:02.3]} 21. Qd3 {[%clk 0:02:06]} 21... Qd5 {[%clk 0:01:56.7]} 22. c4 {[%clk
0:01:53.1]} 22... Nxc4 {[%clk 0:01:55]} 23. Ng4 {[%clk 0:01:36.2]} 23... Be7
{[%clk 0:01:51.9]} 24. Qg3 {[%clk 0:01:32.5]} 24... Kh8 {[%clk 0:01:49.3]} 25.
h4 {[%clk 0:01:26.2]} 25... Bb4 {[%clk 0:01:38.2]} 26. Re2 {[%clk 0:01:18.3]}
26... Nd6 {[%clk 0:01:34.4]} 27. Re5 {[%clk 0:01:11.8]} 27... Nf5 {[%clk
0:01:26.8]} 28. Qd3 {[%clk 0:00:50.5]} 28... Qc4 {[%clk 0:01:22]} 29. Qe4 {[%clk
0:00:48.2]} 29... Qc2 {[%clk 0:01:18.5]} 30. Qxc2 {[%clk 0:00:41.1]} 30... Rxc2
{[%clk 0:01:17.7]} 31. d5 {[%clk 0:00:41.6]} 31... Rc4 {[%clk 0:01:10.2]} 32. g3
{[%clk 0:00:35.5]} 32... Nxh4 {[%clk 0:01:04.9]} 33. dxe6 {[%clk 0:00:27.9]}
33... Nf3+ {[%clk 0:01:02.6]} 34. Kg2 {[%clk 0:00:28.1]} 34... Nxe5 {[%clk
0:01:00.7]} 35. Nxe5 {[%clk 0:00:29]} 35... Rxf4 {[%clk 0:00:55.8]} 36. gxf4
{[%clk 0:00:29.9]} 36... fxe6 {[%clk 0:00:56.1]} 37. Rd7 {[%clk 0:00:30.5]}
37... a5 {[%clk 0:00:50]} 38. Rb7 {[%clk 0:00:20.1]} 38... Rxf4 {[%clk
0:00:43.3]} 39. Rxb6 {[%clk 0:00:17.1]} 39... Rxf2+ {[%clk 0:00:42.1]} 40. Kg3
{[%clk 0:00:16.6]} 40... Rf8 {[%clk 0:00:37.6]} 41. Rxe6 {[%clk 0:00:16.5]}
41... g6 {[%clk 0:00:31]} 42. Nc6 {[%clk 0:00:15.5]} 42... Kg7 {[%clk
0:00:28.6]} 43. Re4 {[%clk 0:00:11.2]} 43... Bd6+ {[%clk 0:00:25.6]} 44. Kg2
{[%clk 0:00:11.4]} 44... Rc8 {[%clk 0:00:22.4]} 45. Rc4 {[%clk 0:00:08.2]} 45...
a4 {[%clk 0:00:19.4]} 46. Kf3 {[%clk 0:00:04.9]} 46... a3 {[%clk 0:00:19.5]} 47.
Ke4 {[%clk 0:00:04.7]} 47... h5 {[%clk 0:00:17.8]} 48. Kd5 {[%clk 0:00:05.3]}
48... Bf8 {[%clk 0:00:17.8]} 49. Ra4 {[%clk 0:00:05.6]} 49... Rc7 {[%clk
0:00:17.4]} 50. Ne5 {[%clk 0:00:05.1]} 50... Rc5+ {[%clk 0:00:15.9]} 51. Ke4
{[%clk 0:00:04.6]} 51... Rb5 {[%clk 0:00:08]} 52. Ra6 {[%clk 0:00:02.8]} 52...
Rb4+ {[%clk 0:00:05.7]} 53. Kd5 {[%clk 0:00:03.3]} 53... Rb5+ {[%clk 0:00:05.1]}
54. Ke4 {[%clk 0:00:03.6]} 54... Kh7 {[%clk 0:00:03.8]} 55. Nxg6 {[%clk
0:00:03.4]} 55... Bg7 {[%clk 0:00:04.7]} 56. Ne7 {[%clk 0:00:02.9]} 56... Rb4+
{[%clk 0:00:04.7]} 57. Kf3 {[%clk 0:00:02.8]} 57... h4 {[%clk 0:00:05.6]} 58.
Nf5 {[%clk 0:00:02.9]} 58... h3 {[%clk 0:00:04.3]} 59. Ra7 {[%clk 0:00:03.4]}
59... h2 {[%clk 0:00:04.1]} 60. Rxg7+ {[%clk 0:00:02.9]} 60... Kh8 {[%clk
0:00:04.2]} 61. Kg2 {[%clk 0:00:03.5]} 61... h1=Q+ {[%clk 0:00:01.8]} 62. Kxh1
{[%clk 0:00:03.6]} 62... Rb1+ {[%clk 0:00:02.7]} 63. Kh2 {[%clk 0:00:03.4]}
63... Rf1 {[%clk 0:00:01.4]} 64. Rf7 {[%clk 0:00:02.3]} 64... Rf2+ {[%clk
0:00:02.3]} 65. Kg3 {[%clk 0:00:02.8]} 65... Rxa2 {[%clk 0:00:02.6]} 66. Ra7
{[%clk 0:00:02.9]} 66... Kg8 {[%clk 0:00:03.5]} 67. Ne7+ {[%clk 0:00:02.8]}
67... Kf7 {[%clk 0:00:02.6]} 68. Nd5+ {[%clk 0:00:03.7]} 68... Ke6 {[%clk
0:00:03.5]} 69. Nc3 {[%clk 0:00:04.1]} 69... Rc2 {[%clk 0:00:02.1]} 70. Rxa3
{[%clk 0:00:03.6]} 70... Ke5 {[%clk 0:00:03]} 71. Kf3 {[%clk 0:00:04]} 71... Kd4
{[%clk 0:00:03.9]} 72. Ne2+ {[%clk 0:00:04.5]} 72... Kc4 {[%clk 0:00:04.4]} 73.
Re3 {[%clk 0:00:05]} 73... Kc5 {[%clk 0:00:05.3]} 74. Re5+ {[%clk 0:00:05.2]}
74... Kc4 {[%clk 0:00:04.5]} 75. Re4+ {[%clk 0:00:05.5]} 75... Kd3 {[%clk
0:00:05.4]} 76. Rd4# {[%clk 0:00:05.3]} 1-0